bitfinex/quotes_SOLUSD_20230110
["timestamp","ask_amount","ask_price","bid_price","bid_amount"]
[1673344952876,0.96,16.139,16.126,20.0]
[1673344953492,47.45,16.139,16.126,20.0]
[1673344957284,0.96,16.139,16.126,20.0]
[1673344959590,47.45,16.139,16.126,20.0]
[1673344961390,0.96,16.139,16.126,20.0]
[1673344962547,47.45,16.139,16.126,20.0]
[1673344965064,46.49,16.139,16.126,20.0]
[1673344965262,26.37,16.14,16.126,20.0]
[1673344965906,26.37,16.14,16.126,66.52]
[1673344966413,26.37,16.14,16.134,17.0]
[1673344967064,26.37,16.14,16.135,1.55425546]
[1673344967274,46.48,16.142,16.135,1.55425546]
[1673344967590,20.0,16.141,16.135,1.55425546]
[1673344967898,20.0,16.141,16.134,17.0]
[1673344968101,26.22,16.14,16.134,17.0]
[1673344968316,44.47855699,16.147,16.134,17.0]
[1673344968317,26.38,16.15,16.134,17.0]
[1673344968637,26.38,16.15,16.135,23.0744512]
[1673344968948,26.38,16.15,16.137,3.0744512]
[1673344969150,46.46,16.149,16.137,3.0744512]
[1673344969565,26.38,16.15,16.137,3.0744512]
[1673344970725,46.46,16.149,16.137,3.0744512]
[1673344972731,131.18,16.15,16.137,3.0744512]
[1673344973053,46.46,16.149,16.137,3.0744512]
[1673344973892,0.96,16.148,16.137,3.0744512]
[1673344974299,0.96,16.147,16.137,3.0744512]
[1673344976627,46.46,16.148,16.135,20.0]
[1673344976842,46.46,16.149,16.135,20.0]
[1673344977458,17.0,16.148,16.135,20.0]
[1673344977660,46.46,16.147,16.135,20.0]
[1673344977892,46.46,16.147,16.134,108.3997]
[1673344978207,26.22,16.14,16.134,108.3997]
[1673344978399,26.22,16.14,16.133,5.7279658]
[1673344978826,0.96,16.139,16.133,5.7279658]
[1673344979467,47.45,16.139,16.133,5.7279658]
[1673344984180,46.49,16.139,16.133,5.7279658]
[1673344985554,0.96,16.138,16.133,5.7279658]
[1673344986702,46.49,16.137,16.133,5.7279658]
[1673344987032,0.96,16.136,16.133,5.7279658]
[1673344991977,46.5,16.135,16.119,117.4776]
[1673344992170,26.22,16.13,16.119,117.4776]
[1673344992378,0.96,16.129,16.119,117.4776]
[1673344992587,46.52,16.128,16.119,117.4776]
[1673344992798,46.52,16.129,16.119,20.0]
[1673344993431,0.96,16.128,16.119,20.0]
[1673344993850,0.96,16.128,16.114,20.0]
[1673344994190,46.52,16.127,16.114,20.0]
[1673344994381,0.96,16.126,16.114,20.0]
[1673344994801,46.52,16.129,16.114,20.0]
[1673344995649,12.41264703,16.131,16.115,46.56]
[1673344995873,12.41264703,16.131,16.116,0.96]
[1673344996059,12.41264703,16.131,16.117,47.51]
[1673344996269,12.41264703,16.131,16.119,20.0]
[1673344996496,12.41264703,16.131,16.12,66.54]
[1673344996694,12.41264703,16.131,16.122,20.0]
[1673344996904,12.41264703,16.131,16.123,63.53]
[1673344997120,12.41264703,16.131,16.123,17.0]
[1673344997642,12.41264703,16.131,16.123,63.53]
[1673344997852,12.41264703,16.131,16.124,20.0]
[1673344998057,12.41264703,16.131,16.125,17.0]
[1673344998494,4.703e-05,16.131,16.126,20.0]
[1673344998696,4.703e-05,16.131,16.124,20.0]
[1673345000702,4.703e-05,16.131,16.125,17.0]
[1673345001951,4.703e-05,16.131,16.124,20.0]
[1673345003332,26.08,16.13,16.124,20.0]
[1673345003751,26.08,16.13,16.122,20.0]
[1673345004062,0.96,16.129,16.122,20.0]
[1673345004385,47.48,16.129,16.122,20.0]
[1673345006705,26.08,16.13,16.122,20.0]
[1673345006911,4.703e-05,16.131,16.123,17.0]
[1673345007128,4.703e-05,16.131,16.123,63.53]
[1673345007433,4.703e-05,16.131,16.124,20.0]
[1673345007650,4.703e-05,16.131,16.125,17.0]
[1673345008049,4.703e-05,16.131,16.126,20.0]
[1673345008259,4.703e-05,16.131,16.127,17.0]
[1673345009421,4.703e-05,16.131,16.128,2.14039463]
[1673345009940,4.703e-05,16.131,16.128,22.14039463]
[1673345010165,4.703e-05,16.131,16.13,2.92074756]
[1673345013007,4.703e-05,16.131,16.13,22.92074756]
[1673345013216,4.703e-05,16.131,16.13,39.92074756]
[1673345014370,4.703e-05,16.131,16.13,22.92074756]
[1673345014987,4.703e-05,16.131,16.13,20.0]
[1673345015849,4.703e-05,16.131,16.13,37.0]
[1673345016484,4.703e-05,16.131,16.13,20.0]
[1673345018901,4.703e-05,16.131,16.13,37.0]
[1673345022883,4.703e-05,16.131,16.13,38.80919923]
[1673345024458,46.47,16.145,16.131,20.0]
[1673345024654,46.46,16.148,16.132,46.51]
[1673345024862,26.42,16.15,16.133,20.0]
[1673345024863,46.46,16.149,16.133,20.0]
[1673345025609,46.46,16.149,16.133,134.4163]
[1673345026868,46.46,16.149,16.134,17.0]
[1673345027076,0.96,16.148,16.135,20.0]
[1673345027294,0.96,16.148,16.136,17.0]
[1673345030768,46.46,16.149,16.136,17.0]
[1673345030988,26.19,16.15,16.136,17.0]
[1673345032331,0.96,16.149,16.136,17.0]
[1673345034125,0.96,16.149,16.137,20.0]
[1673345034332,0.96,16.149,16.138,17.0]
[1673345040462,26.19,16.15,16.138,17.0]
[1673345040965,26.19,16.15,16.139,20.0]
[1673345041179,26.19,16.15,16.14,17.0]
[1673345041369,46.44,16.154,16.14,17.0]
[1673345041581,20.0,16.153,16.14,17.0]
[1673345042325,0.96,16.152,16.14,17.0]
[1673345044122,20.0,16.153,16.14,17.0]
[1673345044869,113.5094,16.155,16.14,17.0]
[1673345045079,46.43,16.158,16.141,105.99825296]
[1673345045293,162.5143,16.159,16.142,17.96]
[1673345045508,162.5143,16.159,16.144,20.0]
[1673345045818,162.5143,16.159,16.145,17.0]
[1673345046439,46.43,16.159,16.145,17.0]
[1673345046750,26.2,16.16,16.145,63.47]
[1673345046969,26.2,16.16,16.146,20.0]
[1673345047183,26.2,16.16,16.147,17.0]
[1673345049082,46.42,16.163,16.147,17.0]
[1673345049297,20.96,16.162,16.147,17.0]
[1673345049608,46.42,16.161,16.147,17.0]
[1673345049924,20.96,16.16,16.147,17.0]
[1673345050638,0.96,16.16,16.147,17.0]
[1673345050848,0.96,16.159,16.147,17.0]
[1673345051059,20.0,16.16,16.147,17.0]
[1673345051268,0.96,16.159,16.147,17.0]
[1673345051804,20.0,16.162,16.148,1.92]
[1673345052236,20.0,16.162,16.148,21.92]
[1673345052421,20.0,16.162,16.149,17.0]
[1673345052752,26.1,16.16,16.149,17.0]
[1673345053178,47.39,16.159,16.149,17.0]
[1673345053810,0.96,16.159,16.149,17.0]
[1673345054128,26.1,16.16,16.149,17.0]
[1673345055597,0.96,16.159,16.149,17.0]
[1673345057264,26.1,16.16,16.149,17.0]
[1673345057594,66.42,16.162,16.149,17.0]
[1673345057792,20.0,16.162,16.149,17.0]
[1673345058645,0.96,16.161,16.149,17.0]
[1673345058960,46.41,16.164,16.15,20.96]
[1673345059175,46.41,16.166,16.151,37.0]
[1673345059368,46.41,16.166,16.152,20.0]
[1673345059583,46.41,16.166,16.153,17.0]
[1673345060519,0.96,16.165,16.153,17.0]
[1673345060732,46.41,16.164,16.153,17.0]
[1673345060965,46.4,16.169,16.153,63.45]
[1673345061149,58.39137279,16.17,16.153,63.45]
[1673345061360,58.39137279,16.17,16.154,1.92]
[1673345061589,58.39137279,16.17,16.156,20.0]
[1673345061800,58.39137279,16.17,16.155,266.08652502]
[1673345062115,58.39137279,16.17,16.156,20.0]
[1673345063475,0.96,16.169,16.156,20.0]
[1673345063797,33.15137279,16.169,16.156,20.0]
[1673345064111,33.15137279,16.169,16.157,17.0]
[1673345064739,0.96,16.169,16.157,17.0]
[1673345065791,33.15137279,16.169,16.157,17.0]
[1673345066834,0.96,16.169,16.157,17.0]
[1673345068315,58.39137279,16.17,16.157,17.0]
[1673345069265,58.39137279,16.17,16.158,0.96]
[1673345069473,58.39137279,16.17,16.158,47.39]
[1673345069668,58.39137279,16.17,16.159,17.0]
[1673345070106,58.39137279,16.17,16.158,17.96]
[1673345070422,58.39137279,16.17,16.158,17.0]
[1673345070631,0.96,16.169,16.157,46.43]
[1673345070823,0.96,16.169,16.156,20.0]
[1673345071999,46.4,16.168,16.149,46.46]
[1673345072313,26.02,16.16,16.146,297.3161]
[1673345072522,0.96,16.159,16.146,139.0782]
[1673345072733,46.43,16.158,16.146,139.0782]
[1673345073133,0.96,16.157,16.146,139.0782]
[1673345073344,0.96,16.156,16.146,139.0782]
[1673345076525,0.96,16.156,16.148,17.0]
[1673345077156,46.43,16.159,16.148,17.0]
[1673345077367,26.15,16.16,16.148,17.0]
[1673345078293,0.96,16.159,16.148,17.0]
[1673345079029,0.96,16.159,16.146,139.0782]
[1673345079444,47.39,16.159,16.146,139.0782]
[1673345081127,65.94825296,16.159,16.144,20.0]
[1673345081334,17.0,16.158,16.144,20.0]
[1673345081547,46.43,16.157,16.144,20.0]
[1673345081756,0.96,16.156,16.144,20.0]
[1673345081973,46.44,16.155,16.144,20.0]
[1673345082397,46.43,16.157,16.144,20.0]
[1673345082607,130.9,16.16,16.145,17.0]
[1673345082608,46.43,16.158,16.145,17.0]
[1673345082807,46.43,16.159,16.145,17.0]
[1673345083345,46.43,16.159,16.144,20.0]
[1673345083561,25.97,16.15,16.144,20.0]
[1673345083765,0.96,16.149,16.144,20.0]
[1673345083973,0.96,16.149,16.142,20.0]
[1673345084299,0.96,16.149,16.14,20.0]
[1673345086712,0.96,16.149,16.139,20.0]
[1673345088915,25.97,16.15,16.139,20.0]
[1673345089128,118.6384,16.155,16.14,17.0]
[1673345089317,118.6384,16.155,16.141,66.48]
[1673345089531,118.6384,16.155,16.142,37.0]
[1673345089848,118.6384,16.155,16.143,46.47]
[1673345090058,118.6384,16.155,16.144,17.0]
[1673345090390,0.96,16.154,16.144,17.0]
[1673345090598,118.6384,16.155,16.143,17.0]
[1673345090808,25.97,16.15,16.142,20.0]
[1673345091024,25.97,16.15,16.139,20.0]
[1673345091953,0.96,16.149,16.139,20.0]
[1673345095846,25.97,16.15,16.14,17.0]
[1673345096994,46.44,16.154,16.14,17.0]
[1673345097220,20.0,16.153,16.141,20.0]
[1673345097412,20.0,16.153,16.142,17.0]
[1673345097623,46.44,16.156,16.142,17.0]
[1673345097834,119.756,16.157,16.142,63.48]
[1673345098052,119.756,16.157,16.143,20.0]
[1673345098264,0.96,16.156,16.144,17.0]
[1673345098686,46.44,16.155,16.139,20.0]
[1673345098885,25.97,16.15,16.134,186.1021]
[1673345099423,0.96,16.149,16.134,186.1021]
[1673345100252,0.96,16.149,16.136,17.0]
[1673345101344,25.97,16.15,16.136,17.0]
[1673345101743,25.97,16.15,16.136,63.5]
[1673345101956,25.97,16.15,16.137,20.0]
[1673345102167,25.97,16.15,16.138,17.0]
[1673345102712,0.96,16.149,16.138,17.0]
[1673345110272,0.96,16.149,16.137,20.0]
[1673345112904,0.96,16.149,16.138,17.0]
[1673345116359,36.51825296,16.149,16.135,46.5]
[1673345116566,36.81836312,16.137,16.13,162.7184]
[1673345117203,36.81836312,16.137,16.132,46.51]
[1673345117522,25.89,16.15,16.132,46.51]
[1673345117738,25.89,16.15,16.134,20.0]
[1673345117930,25.89,16.15,16.135,63.5]
[1673345118134,25.89,16.15,16.136,20.0]
[1673345118344,26.19,16.15,16.137,17.0]
[1673345119411,0.96,16.149,16.137,17.0]
[1673345125809,0.96,16.149,16.134,20.0]
[1673345126143,0.96,16.149,16.12,130.75]
[1673345126144,26.19,16.14,16.126,46.52]
[1673345126647,26.19,16.14,16.122,46.54]
[1673345126859,0.96,16.139,16.122,46.54]
[1673345127069,0.96,16.139,16.124,20.0]
[1673345127292,0.96,16.139,16.125,66.53]
[1673345129280,0.96,16.139,16.126,17.0]
[1673345129818,0.96,16.139,16.125,66.53]
[1673345130024,131.28,16.14,16.125,66.53]
[1673345131071,131.28,16.14,16.126,17.0]
[1673345137288,131.28,16.14,16.128,20.0]
[1673345137495,26.35,16.14,16.129,17.0]
[1673345138022,26.35,16.14,16.13,1.56943955]
[1673345138211,26.35,16.14,16.129,17.0]
[1673345138423,0.96,16.139,16.129,17.0]
[1673345138844,26.35,16.14,16.129,17.0]
[1673345139055,26.35,16.14,16.13,21.60055531]
[1673345139265,26.35,16.14,16.132,1.7628131]
[1673345139912,26.35,16.14,16.131,17.0]
[1673345140103,0.96,16.139,16.131,17.0]
[1673345140858,0.96,16.139,16.13,20.0]
[1673345143173,0.96,16.139,16.131,17.0]
[1673345148432,0.96,16.139,16.128,20.0]
[1673345148634,46.49,16.138,16.128,20.0]
[1673345148832,46.49,16.138,16.126,20.0]
[1673345153601,18.55825296,16.138,16.126,20.0]
[1673345153787,46.49,16.137,16.126,20.0]
[1673345155365,0.96,16.136,16.126,20.0]
[1673345155577,46.5,16.135,16.126,20.0]
[1673345155997,0.96,16.134,16.126,20.0]
[1673345164228,46.49,16.137,16.126,20.0]
[1673345164549,46.49,16.139,16.127,17.0]
[1673345164946,46.49,16.139,16.126,20.0]
[1673345165161,65.04825296,16.139,16.126,20.0]
[1673345165591,17.0,16.138,16.126,20.0]
[1673345165910,46.49,16.137,16.126,20.0]
[1673345175876,46.49,16.139,16.126,20.0]
[1673345176101,17.0,16.138,16.126,20.0]
[1673345176319,46.49,16.137,16.126,20.0]
[1673345180087,17.0,16.138,16.126,20.0]
[1673345180299,46.49,16.137,16.126,20.0]
[1673345182089,46.49,16.139,16.127,17.0]
[1673345182311,26.35,16.14,16.128,48.37489785]
[1673345182498,26.35,16.14,16.129,37.0]
[1673345182714,26.35,16.14,16.13,2.33508232]
[1673345187140,46.49,16.139,16.129,20.0]
[1673345190814,26.35,16.14,16.13,17.0]
[1673345193536,32.19137279,16.142,16.13,17.0]
[1673345193741,46.47,16.145,16.132,20.0]
[1673345193956,46.46,16.149,16.133,20.0744512]
[1673345195009,17.0,16.148,16.133,20.0744512]
[1673345195224,46.46,16.147,16.133,20.0744512]
[1673345197967,46.46,16.147,16.133,38.63270416]
[1673345198299,46.46,16.149,16.134,20.0]
[1673345198512,46.46,16.149,16.135,20.0744512]
[1673345201864,17.0,16.148,16.135,20.0744512]
[1673345202078,46.46,16.147,16.135,20.0744512]
[1673345202294,46.46,16.147,16.135,17.0]
[1673345202923,17.0,16.146,16.134,20.0]
[1673345203115,66.47,16.145,16.134,20.0]
[1673345204080,66.47,16.145,16.132,20.0]
[1673345205430,66.47,16.145,16.133,17.0]
[1673345208582,46.47,16.145,16.133,17.0]
[1673345208793,46.46,16.149,16.133,17.0]
[1673345209008,46.46,16.149,16.134,1.61913414]
[1673345209223,46.46,16.149,16.133,35.55825296]
[1673345209540,46.46,16.149,16.134,1.58632655]
[1673345213317,17.0,16.148,16.133,17.0]
[1673345213526,46.46,16.147,16.133,17.0]
[1673345215208,46.46,16.147,16.13,117.6546]
[1673345215209,26.19,16.14,16.13,117.6546]
[1673345215417,46.49,16.139,16.13,117.6546]
[1673345215838,26.19,16.14,16.13,117.6546]
[1673345216062,46.49,16.139,16.13,117.6546]
[1673345218172,46.49,16.139,16.126,20.0]
[1673345223644,46.49,16.139,16.129,17.0]
[1673345224175,46.49,16.139,16.126,20.0]
[1673345225862,26.19,16.14,16.129,17.0]
[1673345230488,46.49,16.139,16.129,17.0]
[1673345235423,46.49,16.139,16.126,20.0]
[1673345242376,46.49,16.139,16.129,17.0]
[1673345250129,26.19,16.14,16.129,17.0]
[1673345250455,26.19,16.14,16.13,1.5702453]
[1673345250669,26.19,16.14,16.129,17.0]
[1673345253388,26.19,16.14,16.13,20.0]
[1673345253600,116.5833,16.146,16.132,20.0]
[1673345253925,116.5833,16.146,16.134,20.0]
[1673345254244,116.5833,16.146,16.135,3.0744512]
[1673345254458,116.5833,16.146,16.135,20.0744512]
[1673345255388,116.5833,16.146,16.135,3.0744512]
[1673345255602,46.47,16.145,16.135,20.0744512]
[1673345259196,46.47,16.145,16.135,3.0744512]
[1673345259406,46.47,16.145,16.131,109.5476]
[1673345259407,17.0,16.144,16.131,109.5476]
[1673345259616,26.19,16.14,16.131,109.5476]
[1673345259930,46.49,16.139,16.131,109.5476]
[1673345260145,26.19,16.14,16.131,109.5476]
[1673345260669,26.19,16.14,16.132,17.0]
[1673345260883,26.19,16.14,16.126,20.0]
[1673345261192,46.49,16.139,16.126,20.0]
[1673345265074,26.21,16.14,16.131,17.0]
[1673345268673,26.21,16.14,16.126,66.52]
[1673345268889,46.49,16.139,16.126,20.0]
[1673345272355,26.21,16.14,16.126,20.0]
[1673345272566,26.21,16.14,16.131,17.0]
[1673345274871,26.21,16.14,16.129,20.0]
[1673345277504,17.0,16.139,16.129,20.0]
[1673345277694,63.49,16.139,16.129,20.0]
[1673345278643,63.49,16.139,16.126,20.0]
[1673345278852,63.49,16.139,16.125,20.0]
[1673345278853,82.04825296,16.139,16.125,20.0]
[1673345279063,26.15,16.13,16.125,20.0]
[1673345282002,26.15,16.13,16.124,20.0]
[1673345282428,26.15,16.13,16.12,20.0]
[1673345282643,46.52,16.129,16.12,20.0]
[1673345282841,26.15,16.13,16.12,20.0]
[1673345287892,46.52,16.129,16.12,20.0]
[1673345297910,17.0,16.128,16.12,20.0]
[1673345298106,17.0,16.128,16.115,20.0]
[1673345298430,46.52,16.127,16.115,20.0]
[1673345298832,17.0,16.126,16.115,20.0]
[1673345299261,46.53,16.125,16.116,19.90008094]
[1673345299484,17.0,16.124,16.116,19.90008094]
[1673345302202,46.52,16.129,16.116,19.90008094]
[1673345303377,17.0,16.128,16.116,19.90008094]
[1673345303683,46.52,16.127,16.116,19.90008094]
[1673345304004,46.52,16.129,16.116,19.90008094]
[1673345304842,46.52,16.129,16.117,17.0]
[1673345316836,46.52,16.129,16.116,19.90008094]
[1673345318092,17.0,16.128,16.116,19.90008094]
[1673345318288,46.52,16.127,16.116,19.90008094]
[1673345318499,17.0,16.126,16.116,19.90008094]
[1673345318720,46.53,16.125,16.116,19.90008094]
[1673345321647,17.0,16.124,16.116,19.90008094]
[1673345322173,46.53,16.123,16.112,41.7669691]
[1673345322492,131.08,16.12,16.112,41.7669691]
[1673345322689,46.54,16.119,16.112,41.7669691]
[1673345322899,17.0,16.118,16.112,41.7669691]
[1673345323113,46.55,16.117,16.112,41.7669691]
[1673345323325,17.0,16.116,16.112,41.7669691]
[1673345324084,46.54,16.119,16.112,41.7669691]
[1673345324272,17.0,16.118,16.112,41.7669691]
[1673345324488,46.55,16.117,16.112,41.7669691]
[1673345324702,17.0,16.116,16.112,41.7669691]
[1673345327021,17.0,16.116,16.103,20.0]
[1673345327022,30.13294524,16.111,16.103,20.0]
[1673345328272,30.13294524,16.111,16.103,66.59]
[1673345332594,30.13294524,16.111,16.107,20.0]
[1673345332806,131.08,16.12,16.107,20.0]
[1673345333118,131.08,16.12,16.108,17.0]
[1673345333119,26.37,16.12,16.108,17.0]
[1673345333313,26.37,16.12,16.107,66.58]
[1673345333946,26.37,16.12,16.107,20.0]
[1673345334152,17.0,16.119,16.107,20.0]
[1673345334386,125.2395,16.119,16.107,20.0]
[1673345334895,108.2395,16.119,16.108,17.0]
[1673345341317,108.2395,16.119,16.107,20.0]
[1673345341537,154.7795,16.119,16.107,20.0]
[1673345341837,154.7795,16.119,16.106,71.8213639]
[1673345342049,17.0,16.118,16.106,71.8213639]
[1673345342272,46.55,16.117,16.106,71.8213639]
[1673345344565,17.0,16.116,16.106,71.8213639]
[1673345345107,46.56,16.115,16.106,71.8213639]
[1673345346689,131.24,16.12,16.107,37.0]
[1673345346996,26.37,16.12,16.108,1.71738007]
[1673345347210,46.52,16.127,16.11,3.0744512]
[1673345347417,109.9033,16.128,16.111,48.49]
[1673345347612,109.9033,16.128,16.113,20.0]
[1673345347822,109.9033,16.128,16.114,63.56]
[1673345348037,109.9033,16.128,16.115,20.0]
[1673345348244,109.9033,16.128,16.116,17.0]
[1673345348456,109.9033,16.128,16.115,38.55825296]
[1673345348882,26.21,16.12,16.111,20.0]
[1673345349092,46.54,16.119,16.111,20.0]
[1673345350576,26.21,16.12,16.111,20.0]
[1673345351835,46.52,16.126,16.112,36.51825296]
[1673345352029,109.9033,16.128,16.113,46.56]
[1673345352242,109.9033,16.128,16.114,17.96]
[1673345352554,109.9033,16.128,16.116,20.0]
[1673345352767,109.9033,16.128,16.117,17.0]
[1673345353729,46.52,16.129,16.118,18.55825296]
[1673345353940,161.5764,16.135,16.119,17.0]
[1673345354133,20.0,16.134,16.12,20.0]
[1673345354342,46.5,16.133,16.121,17.0]
[1673345354868,20.0,16.132,16.12,38.55825296]
[1673345355092,46.51,16.131,16.12,38.55825296]
[1673345355292,20.0,16.13,16.12,38.55825296]
[1673345356139,20.0,16.133,16.12,38.55825296]
[1673345356344,46.51,16.132,16.12,38.55825296]
[1673345356674,20.0,16.131,16.12,38.55825296]
[1673345356984,46.51,16.13,16.12,38.55825296]
[1673345357399,72.72,16.13,16.12,38.55825296]
[1673345361398,72.72,16.13,16.121,17.0]
[1673345363517,72.72,16.13,16.12,20.0]
[1673345364453,72.51,16.13,16.12,20.0]
[1673345364979,17.0,16.129,16.12,20.0]
[1673345365170,46.52,16.128,16.12,20.0]
[1673345365600,46.52,16.128,16.118,20.0]
[1673345368561,17.0,16.127,16.118,20.0]
[1673345368964,46.52,16.126,16.118,20.0]
[1673345369296,46.52,16.129,16.118,20.0]
[1673345369609,26.49,16.13,16.118,38.55825296]
[1673345370015,20.0,16.131,16.119,17.0]
[1673345370224,20.0,16.133,16.119,17.0]
[1673345370546,46.51,16.132,16.119,82.09825296]
[1673345370756,46.51,16.132,16.12,20.0]
[1673345370965,46.5,16.136,16.121,37.96]
[1673345371179,112.1016,16.137,16.122,46.54]
[1673345371480,46.49,16.139,16.123,38.92]
[1673345371703,26.44,16.14,16.124,46.53]
[1673345372027,26.44,16.14,16.125,18.92]
[1673345372332,26.44,16.14,16.127,20.0]
[1673345372546,46.48,16.143,16.128,63.52]
[1673345372743,46.47,16.145,16.129,1.92]
[1673345372954,46.46,16.149,16.13,46.51]
[1673345373169,46.46,16.149,16.132,20.0]
[1673345373385,46.46,16.149,16.133,63.5]
[1673345373910,46.46,16.149,16.134,20.0]
[1673345374122,46.46,16.149,16.135,17.0]
[1673345374747,46.46,16.149,16.135,35.55825296]
[1673345374960,26.49,16.15,16.136,20.0]
[1673345375172,26.49,16.15,16.137,63.49]
[1673345375826,46.46,16.149,16.137,17.0]
[1673345376126,46.46,16.149,16.136,66.5]
[1673345376312,46.46,16.149,16.137,17.0]
[1673345377906,26.49,16.15,16.138,0.96]
[1673345378318,26.49,16.15,16.138,39.51825296]
[1673345378532,26.49,16.15,16.139,17.0]
[1673345379182,46.45,16.153,16.139,17.0]
[1673345379499,20.0,16.152,16.139,17.0]
[1673345380444,20.0,16.152,16.14,0.96]
[1673345380842,20.0,16.153,16.14,17.0]
[1673345381171,26.25,16.15,16.137,46.49]
[1673345381378,46.46,16.149,16.137,46.49]
[1673345381591,26.25,16.15,16.136,20.0]
[1673345383787,46.46,16.149,16.136,20.0]
[1673345383998,46.46,16.149,16.137,17.0]
[1673345404591,46.46,16.149,16.136,20.0]
[1673345404801,46.46,16.149,16.134,20.0]
[1673345405655,46.46,16.149,16.132,46.51]
[1673345405876,17.0,16.148,16.13,20.0]
[1673345406188,46.46,16.147,16.13,20.0]
[1673345406386,17.0,16.146,16.13,20.0]
[1673345406712,46.47,16.145,16.13,20.0]
[1673345408081,46.47,16.145,16.132,17.0]
[1673345414178,78.66137279,16.145,16.132,17.0]
[1673345414373,46.47,16.145,16.132,17.0]
[1673345415532,32.19137279,16.143,16.13,20.0]
[1673345415727,46.48,16.142,16.13,20.0]
[1673345415940,46.48,16.143,16.13,20.0]
[1673345416376,46.47,16.144,16.132,17.0]
[1673345416575,46.47,16.145,16.132,17.0]
[1673345419003,114.4798,16.146,16.133,39.51825296]
[1673345419225,114.4798,16.146,16.134,63.5]
[1673345419418,114.4798,16.146,16.134,17.0]
[1673345421305,114.4798,16.146,16.135,0.96]
[1673345422688,114.4798,16.146,16.135,20.96]
[1673345422885,114.4798,16.146,16.136,17.0]
[1673345428263,46.46,16.148,16.137,46.49]
[1673345428463,64.26774621,16.154,16.138,37.0]
[1673345428464,46.44,16.154,16.138,37.0]
[1673345428675,104.0893,16.155,16.14,20.0]
[1673345428881,104.0893,16.155,16.141,85.4]
[1673345429302,104.0893,16.155,16.142,18.55825296]
[1673345429522,104.0893,16.155,16.143,17.96]
[1673345431419,104.0893,16.155,16.143,36.51825296]
[1673345431632,104.0893,16.155,16.145,20.0]
[1673345431816,104.0893,16.155,16.146,17.0]
[1673345432351,46.43,16.158,16.147,21.92]
[1673345432551,26.24,16.16,16.148,17.0]
[1673345432763,46.43,16.159,16.148,17.0]
[1673345432977,46.43,16.159,16.149,0.96]